fUSD/lending_fUSD_20250720
["ID","MTS","AMOUNT","RATE_DAILY","PERIOD"]
[373482959,1753019554116,-480.0,0.00020383,2]
[373482960,1753019554125,-480.0,0.00020383,2]
[373482961,1753019554135,-480.0,0.00020383,2]
[373482962,1753019554145,-1245.96,0.00020383,2]
[373482963,1753019554155,-6803.71,0.00020383,2]
[373482964,1753019554165,-480.0,0.00020383,2]
[373482965,1753019554174,-871.27,0.00020383,2]
[373482966,1753019554184,-1112.24,0.00020383,2]
[373482967,1753019554193,-1360.71,0.00020383,2]
[373482968,1753019554202,-480.0,0.00020383,2]
[373482969,1753019554211,-579.47,0.00020383,2]
[373482970,1753019554221,-480.0,0.00020383,2]
[373482971,1753019554231,-2360.18,0.00020383,2]
[373482972,1753019554240,-1144.57,0.00020383,2]
[373482973,1753019554250,-709.9,0.00020383,2]
[373482974,1753019554259,-957.17,0.00020383,2]
[373482975,1753019554268,-3060.53,0.00020383,2]
[373482976,1753019554277,-1014.42,0.00020383,2]
[373482977,1753019554286,-666.51,0.00020383,2]
[373482978,1753019554296,-1099.37,0.00020383,2]
[373482979,1753019554306,-1194.62,0.00020383,2]
[373482980,1753019554315,-622.5,0.00020383,2]
[373482981,1753019554324,-480.0,0.00020383,2]
[373482982,1753019554334,-1106.14,0.00020383,2]
[373482983,1753019554343,-4161.68,0.00020383,2]
[373482984,1753019554352,-1224.46,0.00020383,2]
[373482985,1753019554361,-3588.19,0.00020383,2]
[373482986,1753019554370,-1009.8,0.00020383,2]
[373482987,1753019554380,-480.0,0.00020383,2]
[373482988,1753019554390,-759.09,0.00020383,2]
[373482989,1753019554399,-480.0,0.00020383,2]
[373482990,1753019554408,-480.0,0.00020383,2]
[373482991,1753019554418,-892.48,0.00020383,2]
[373482992,1753019554427,-2738.0,0.00020383,2]
[373482993,1753019554436,-2154.18,0.00020383,2]
[373482994,1753019554446,-1765.61,0.00020383,2]
[373482995,1753019554455,-563.37,0.00020383,2]
[373482996,1753019554466,-480.0,0.00020383,2]
[373482997,1753019554477,-1264.87,0.00020383,2]
[373482998,1753019554487,-1317.6,0.00020383,2]
[373482999,1753019554496,-3701.58,0.00020383,2]
[373483000,1753019554505,-1417.35,0.00020383,2]
[373483001,1753019554516,-1224.02,0.00020383,2]
[373483002,1753019554526,-494.3,0.00020383,2]
[373483003,1753019554536,-2675.44,0.00020383,2]
[373483004,1753019554549,-2516.48,0.00020383,2]
[373483005,1753019554558,-1280.96,0.00020383,2]
[373483006,1753019554568,-1234.43,0.00020383,2]
[373483007,1753019554577,-480.0,0.00020383,2]
[373483008,1753019554587,-480.0,0.00020383,2]
[373483009,1753019554596,-1639.88,0.00020383,2]
[373483010,1753019554605,-2371.21,0.00020383,2]
[373483011,1753019554615,-2621.63,0.00020383,2]
[373483012,1753019554625,-503.0,0.00020383,2]
[373483013,1753019554635,-1781.89,0.00020383,2]
[373483014,1753019554645,-4290.9,0.00020383,2]
[373483015,1753019554654,-673.12,0.00020383,2]
[373483016,1753019554664,-2112.39,0.00020383,2]
[373483017,1753019554673,-480.0,0.00020383,2]
[373483018,1753019554683,-686.73,0.00020383,2]
[373483019,1753019554692,-1034.48,0.00020383,2]
[373483020,1753019554702,-509.06,0.00020383,2]
[373483021,1753019554712,-578.43,0.00020383,2]
[373483022,1753019554722,-2302.39,0.00020383,2]
[373483023,1753019554732,-1841.2,0.00020383,2]
[373483024,1753019554742,-810.97,0.00020383,2]
[373483025,1753019554751,-480.0,0.00020383,2]
[373483026,1753019554760,-510.33,0.00020383,2]
[373483027,1753019554769,-1875.92,0.00020383,2]
[373483028,1753019554778,-1830.19,0.00020383,2]
[373483029,1753019554788,-1656.2,0.00020383,2]
[373483030,1753019554797,-1530.02,0.00020383,2]
[373483031,1753019554806,-4600.51,0.00020383,2]
[373483032,1753019554815,-678.36,0.00020383,2]
[373483033,1753019554824,-1122.81,0.00020383,2]
[373483034,1753019554834,-755.77,0.00020383,2]
[373483035,1753019554844,-1854.23,0.00020383,2]
[373483036,1753019554930,-3405.09,0.00020383,2]
[373483037,1753019554940,-150.0,0.00020422,2]
[373483038,1753019554949,-151.0,0.00020441,2]
[373483039,1753019554960,-151.0,0.00020441,2]
[373483040,1753019554970,-151.0,0.00020441,2]
[373483041,1753019554979,-151.0,0.00020441,2]
[373483042,1753019554988,-230.637073,0.00020441,2]
[373483043,1753019554997,-153680.7784811,0.00020441,2]
[373483044,1753019555006,-11425.715871,0.00020441,2]
[373483045,1753019555015,-741.6540544,0.00020441,2]
[373483046,1753019555024,-1251.46458,0.00020441,2]
[373483047,1753019555034,-24572.9113587,0.00020441,2]
[373483048,1753019555044,-653.168506,0.00020441,2]
[373483049,1753019555053,-225.134554,0.00020446,2]
[373483050,1753019555062,-151.0,0.00020446,2]
[373483051,1753019555072,-150.0,0.00020446,2]
[373483052,1753019555082,-500.0,0.00020446,2]
[373483053,1753019555091,-500.0,0.00020446,2]
[373483054,1753019555101,-500.0,0.00020446,2]
[373483055,1753019555110,-250.0,0.00020446,2]
[373483056,1753019555120,-150.0,0.00020446,2]
[373483057,1753019555129,-150.0,0.00020446,2]
[373483058,1753019555138,-187.07473204,0.00020446,2]
[373483059,1753019555148,-500.0,0.00020446,2]
[373483060,1753019555157,-500.0,0.00020446,2]
[373483061,1753019555167,-150.0,0.00020446,2]
[373483062,1753019555176,-150.0,0.00020446,2]
[373483063,1753019555185,-150.0,0.00020446,2]
[373483064,1753019555195,-150.0,0.00020446,2]
[373483065,1753019555204,-150.0,0.00020446,2]
[373483066,1753019555214,-150.0,0.00020446,2]
[373483067,1753019555224,-150.0,0.00020446,2]
[373483068,1753019555234,-620.0,0.00020446,2]
[373483069,1753019555243,-150.0,0.00020446,2]
[373483070,1753019555252,-2185.0,0.00020446,2]
[373483071,1753019555262,-150.0,0.00020446,2]
[373483072,1753019555271,-589.0,0.00020446,2]
[373483073,1753019555280,-343.0,0.00020451,2]
[373483074,1753019555288,-168.0,0.00020452,2]
[373483075,1753019555298,-242.0,0.00020455,2]
[373483076,1753019555308,-152.0,0.00020458,5]
[373483077,1753019555317,-1500.0,0.00020468,2]
[373483078,1753019555327,-1500.0,0.00020468,2]
[373483079,1753019555336,-899.10330851,0.00020468,2]
[373483080,1753019555345,-500.0,0.00020472,2]
[373483081,1753019555355,-220.54184316,0.00020472,2]
[373483082,1753019555364,-154.14113,0.00020473,2]
[373483083,1753019555373,-178.669679,0.00020473,2]
[373483084,1753019555382,-178.669679,0.00020473,2]
[373483085,1753019555391,-323.573606,0.00020473,2]
[373483086,1753019555401,-323.573606,0.00020473,2]
[373483087,1753019555411,-242.0,0.00020479,2]
[373483088,1753019555420,-68055.9325734,0.00020479,2]
[373483089,1753019555430,-3000.0,0.00020487,5]
[373483090,1753019555439,-2168.69,0.00020492,2]
[373483091,1753019555448,-1171.8,0.00020492,2]
[373483092,1753019555458,-3702.53,0.00020492,2]
[373483093,1753019555468,-1608.55,0.00020492,2]
[373483094,1753019555481,-1394.43,0.00020492,2]
[373483095,1753019555491,-4486.95,0.00020492,2]
[373483096,1753019555500,-1957.62,0.00020492,2]
[373483097,1753019555509,-1000.0,0.00020492,2]
[373483098,1753019555519,-947.48,0.00020492,2]
[373483099,1753019555528,-2119.05,0.00020492,2]
[373483100,1753019555537,-1974.09,0.00020492,2]
[373483101,1753019555547,-4784.89,0.00020492,2]
[373483102,1753019555556,-1106.14,0.00020492,2]
[373483103,1753019555566,-1264.87,0.00020492,2]
[373483104,1753019555576,-2621.63,0.00020492,2]
[373483105,1753019555585,-152.422035,0.00020493,2]
[373483106,1753019555594,-152.422035,0.00020493,2]
[373483107,1753019555604,-309.984824,0.00020493,2]
[373483108,1753019555614,-309.984824,0.00020493,2]
[373483109,1753019555623,-151.0,0.00020493,2]
[373483110,1753019555632,-480.0,0.00020493,2]
[373483111,1753019555642,-480.0,0.00020493,2]
[373483112,1753019555652,-480.0,0.00020493,2]
[373483113,1753019555661,-480.0,0.00020493,2]
[373483114,1753019555670,-480.0,0.00020493,2]
[373483115,1753019555680,-991.02,0.00020493,2]
[373483116,1753019555689,-480.0,0.00020493,2]
[373483117,1753019555699,-573.77,0.00020493,2]
[373483118,1753019555708,-759.54,0.00020493,2]
[373483119,1753019555719,-1132.31,0.00020493,2]
[373483120,1753019555728,-817.3,0.00020493,2]
[373483121,1753019555737,-5060.37,0.00020493,2]
[373483122,1753019555746,-561.39,0.00020493,2]
[373483123,1753019555756,-1056.44,0.00020493,2]
[373483124,1753019555765,-561.76,0.00020493,2]
[373483125,1753019555775,-1722.64,0.00020493,2]
[373483126,1753019555785,-1184.53,0.00020493,2]
[373483127,1753019555794,-708.25,0.00020493,2]
[373483128,1753019555804,-640.15,0.00020493,2]
[373483129,1753019555814,-654.33,0.00020493,2]
[373483130,1753019555824,-525.6,0.00020493,2]
[373483131,1753019555833,-2315.41,0.00020493,2]
[373483132,1753019555843,-486.88,0.00020493,2]
[373483133,1753019555852,-1036.06,0.00020493,2]
[373483134,1753019555862,-529.02,0.00020493,2]
[373483135,1753019555871,-573.81,0.00020493,2]
[373483136,1753019555881,-1025.76,0.00020493,2]
[373483137,1753019555890,-802.35,0.00020493,2]
[373483138,1753019555900,-480.0,0.00020493,2]
[373483139,1753019555910,-619.12,0.00020493,2]
[373483140,1753019555919,-480.0,0.00020493,2]
[373483141,1753019555929,-480.0,0.00020493,2]
[373483142,1753019555938,-933.84,0.00020493,2]
[373483143,1753019555948,-1365.37,0.00020493,2]
[373483144,1753019555958,-1899.42,0.00020493,2]
[373483145,1753019555968,-480.0,0.00020493,2]
[373483146,1753019555978,-643.56,0.00020493,2]
[373483147,1753019555987,-480.0,0.00020493,2]
[373483148,1753019555997,-480.0,0.00020493,2]
[373483149,1753019556006,-491.14,0.00020493,2]
[373483150,1753019556015,-513.7,0.00020493,2]
[373483151,1753019556025,-742.91,0.00020493,2]
[373483152,1753019556034,-770.53,0.00020493,2]
[373483153,1753019556043,-480.0,0.00020493,2]
[373483154,1753019556053,-480.0,0.00020493,2]
[373483155,1753019556063,-480.0,0.00020493,2]
[373483156,1753019556072,-703.59,0.00020493,2]
[373483157,1753019556081,-559.29,0.00020493,2]
[373483158,1753019556091,-6566.95,0.00020493,2]
[373483159,1753019556100,-480.0,0.00020493,2]
[373483160,1753019556110,-649.82,0.00020493,2]
[373483161,1753019556119,-480.0,0.00020493,2]
[373483162,1753019556128,-507.08,0.00020493,2]
[373483163,1753019556137,-652.56,0.00020493,2]
[373483164,1753019556146,-873.97,0.00020493,2]
[373483165,1753019556156,-1133.69,0.00020493,2]
[373483166,1753019556165,-1078.11,0.00020493,2]
[373483167,1753019556175,-2024.83,0.00020493,2]
[373483168,1753019556185,-882.42,0.00020493,2]
[373483169,1753019556194,-562.85,0.00020493,2]
[373483170,1753019556202,-528.35,0.00020493,2]
[373483171,1753019556212,-808.63,0.00020493,2]
[373483172,1753019556222,-481.92,0.00020493,2]
[373483173,1753019556232,-698.42,0.00020493,2]
[373483174,1753019556242,-1098.19,0.00020493,2]
[373483175,1753019556251,-480.0,0.00020493,2]
[373483176,1753019556260,-1470.4,0.00020493,2]
[373483177,1753019556269,-480.0,0.00020493,2]
[373483178,1753019556278,-530.18,0.00020493,2]
[373483179,1753019556288,-542.4,0.00020493,2]
[373483180,1753019556297,-480.0,0.00020493,2]
[373483181,1753019556307,-480.0,0.00020493,2]
[373483182,1753019556316,-810.65,0.00020493,2]
[373483183,1753019556325,-509.75,0.00020493,2]
[373483184,1753019556336,-1074.62,0.00020493,2]
[373483185,1753019556346,-480.0,0.00020493,2]
[373483186,1753019556355,-585.83,0.00020493,2]
[373483187,1753019556365,-488.38,0.00020493,2]
[373483188,1753019556375,-1248.2,0.00020493,2]
[373483189,1753019556384,-512.42,0.00020493,2]
[373483190,1753019556394,-989.68,0.00020493,2]
[373483191,1753019556403,-480.0,0.00020493,2]
[373483192,1753019556415,-1298.15,0.00020493,2]
[373483193,1753019556424,-1020.25,0.00020493,2]
[373483194,1753019556433,-507.62,0.00020493,2]
[373483195,1753019556443,-523.15,0.00020493,2]
[373483196,1753019556452,-556.53,0.00020493,2]
[373483197,1753019556462,-480.0,0.00020493,2]
[373483198,1753019556475,-1136.01,0.00020493,2]
[373483199,1753019556485,-480.0,0.00020493,2]
[373483200,1753019556494,-480.0,0.00020493,2]
[373483201,1753019556503,-489.5,0.00020493,2]
[373483202,1753019556514,-1095.88,0.00020493,2]
[373483203,1753019556523,-480.0,0.00020493,2]
[373483204,1753019556533,-480.0,0.00020493,2]
[373483205,1753019556543,-3923.46,0.00020493,2]
[373483206,1753019556553,-705.3,0.00020493,2]
[373483207,1753019556563,-2237.11,0.00020493,2]
[373483208,1753019556572,-480.0,0.00020493,2]
[373483209,1753019556582,-834.1,0.00020493,2]
[373483210,1753019556592,-836.85,0.00020493,2]
[373483211,1753019556601,-480.0,0.00020493,2]
[373483212,1753019556610,-192.33415407,0.00020493,2]
[373483213,1753019556620,-893.54,0.00020493,2]
[373483214,1753019556629,-971.86,0.00020493,2]
[373483215,1753019556639,-697.5,0.00020493,2]
[373483216,1753019556648,-525.44,0.00020493,2]
[373483217,1753019556658,-658.53,0.00020493,2]
[373483218,1753019556668,-730.73,0.00020493,2]
[373483219,1753019556678,-1146.42,0.00020493,2]
[373483220,1753019556688,-483.9,0.00020493,2]
[373483221,1753019556698,-480.0,0.00020493,2]
[373483222,1753019556708,-524.05,0.00020493,2]
[373483223,1753019556719,-480.0,0.00020493,2]
[373483224,1753019556728,-1227.36,0.00020493,2]
[373483225,1753019556738,-747.03,0.00020493,2]
[373483226,1753019556748,-480.0,0.00020493,2]
[373483227,1753019556757,-837.4,0.00020493,2]
[373483228,1753019556767,-6522.42,0.00020493,2]
[373483229,1753019556776,-746.83,0.00020493,2]
[373483230,1753019556786,-480.0,0.00020493,2]
[373483231,1753019556795,-6250.65,0.00020493,2]
[373483232,1753019556805,-482.81,0.00020493,2]
[373483233,1753019556815,-480.0,0.00020493,2]
[373483234,1753019556825,-480.0,0.00020493,2]
[373483235,1753019556834,-690.69,0.00020493,2]
[373483236,1753019556844,-1144.78,0.00020493,2]
[373483237,1753019556854,-569.37,0.00020493,2]
[373483238,1753019556863,-480.0,0.00020493,2]
[373483239,1753019556873,-689.85,0.00020493,2]
[373483240,1753019556882,-738.41,0.00020493,2]
[373483241,1753019556891,-366.01892165,0.00020493,2]
[373483242,1753019556900,-480.0,0.00020493,2]
[373483243,1753019556909,-668.36,0.00020493,2]
[373483244,1753019556919,-334.80336232,0.00020493,2]
[373483245,1753019556928,-932.37,0.00020493,2]
[373483246,1753019556937,-2985.1,0.00020493,2]
[373483247,1753019556947,-1143.0,0.00020493,2]
[373483248,1753019556956,-480.0,0.00020493,2]
[373483249,1753019556965,-939.17,0.00020493,2]
[373483250,1753019556975,-480.0,0.00020493,2]
[373483251,1753019556984,-480.0,0.00020493,2]
[373483252,1753019556994,-1924.75,0.00020493,2]
[373483253,1753019557002,-527.35,0.00020493,2]
[373483254,1753019557012,-601.3,0.00020493,2]
[373483255,1753019557022,-1898.09,0.00020493,2]
[373483256,1753019557031,-3502.66,0.00020493,2]
[373483257,1753019557040,-986.11,0.00020493,2]
[373483258,1753019557050,-472.34980659,0.00020493,2]
[373483259,1753019557058,-1553.54,0.00020493,2]
[373483260,1753019557067,-480.0,0.00020493,2]
[373483261,1753019557076,-480.0,0.00020493,2]
[373483262,1753019557086,-480.0,0.00020493,2]
[373483263,1753019557095,-1483.86,0.00020493,2]
[373483264,1753019557104,-1070.15,0.00020493,2]
[373483265,1753019557113,-532.55,0.00020493,2]
[373483266,1753019557123,-1553.37,0.00020493,2]
[373483267,1753019557132,-480.0,0.00020493,2]
[373483268,1753019557141,-480.0,0.00020493,2]
[373483269,1753019557150,-1194.6,0.00020493,2]
[373483270,1753019557159,-828.22,0.00020493,2]
[373483271,1753019557168,-251.02,0.00020493,2]
[373483272,1753019557177,-1041.33,0.00020493,2]
[373483273,1753019557186,-1596.73,0.00020493,2]
[373483274,1753019557196,-1794.49,0.00020493,2]
[373483275,1753019557206,-630.93,0.00020493,2]
[373483276,1753019557215,-4638.84,0.00020493,2]
[373483277,1753019557226,-1777.66,0.00020493,2]
[373483278,1753019557235,-556.83,0.00020493,2]
[373483279,1753019557245,-480.0,0.00020493,2]
[373483280,1753019557254,-1897.84,0.00020493,2]
[373483281,1753019557264,-1256.18,0.00020493,2]
[373483282,1753019557274,-2882.58,0.00020493,2]
[373483283,1753019557283,-979.84,0.00020493,2]
[373483284,1753019557293,-707.99,0.00020493,2]
[373483285,1753019557302,-574.55,0.00020493,2]
[373483286,1753019557311,-38134.22,0.00020493,2]
[373483287,1753019557320,-1106.08,0.00020493,2]
[373483288,1753019557330,-480.0,0.00020493,2]
[373483289,1753019557340,-480.0,0.00020493,2]
[373483290,1753019557349,-773.09,0.00020493,2]
[373483291,1753019557358,-3225.28,0.00020493,2]
[373483292,1753019557367,-497.28,0.00020493,2]
[373483293,1753019557376,-2593.99,0.00020493,2]
[373483294,1753019557386,-10449.6,0.00020493,2]
[373483295,1753019557395,-2698.38,0.00020493,2]
[373483296,1753019557404,-1260.52,0.00020493,2]
[373483297,1753019557413,-3171.67,0.00020493,2]
[373483298,1753019557423,-2207.57,0.00020493,2]
[373483299,1753019557432,-4837.24,0.00020493,2]
[373483300,1753019557441,-480.0,0.00020493,2]
[373483301,1753019557450,-1908.42,0.00020493,2]
[373483302,1753019557459,-3925.2,0.00020493,2]
[373483303,1753019557471,-1106.38,0.00020493,2]
[373483304,1753019557482,-675.33,0.00020493,2]
[373483305,1753019557491,-1549.05,0.00020493,2]
[373483306,1753019557501,-4186.58,0.00020493,2]
[373483307,1753019557511,-920.58,0.00020493,2]
[373483308,1753019557520,-575.28,0.00020493,2]
[373483309,1753019557530,-480.0,0.00020493,2]
[373483310,1753019557539,-480.0,0.00020493,2]
[373483311,1753019557549,-1601.32,0.00020493,2]
[373483312,1753019557558,-2912.14,0.00020493,2]
[373483313,1753019557567,-501.28,0.00020493,2]
[373483314,1753019557577,-480.0,0.00020493,2]
[373483315,1753019557586,-1649.03,0.00020493,2]
[373483316,1753019557596,-1575.77,0.00020493,2]
[373483317,1753019557606,-1937.56,0.00020493,2]
[373483318,1753019557615,-1894.53,0.00020493,2]
[373483319,1753019557625,-16754.36,0.00020493,2]
[373483320,1753019557634,-597.32,0.00020493,2]
[373483321,1753019557643,-480.0,0.00020493,2]
[373483322,1753019557652,-673.9,0.00020493,2]
[373483323,1753019557662,-1244.68,0.00020493,2]
[373483324,1753019557671,-1980.55,0.00020493,2]
[373483325,1753019557680,-480.0,0.00020493,2]
[373483326,1753019557689,-480.0,0.00020493,2]
[373483327,1753019557699,-1245.96,0.00020493,2]
[373483328,1753019557708,-6803.71,0.00020493,2]
[373483329,1753019557719,-480.0,0.00020493,2]
[373483330,1753019557728,-871.27,0.00020493,2]
[373483331,1753019557737,-1112.24,0.00020493,2]
[373483332,1753019557746,-1360.71,0.00020493,2]
[373483333,1753019557755,-480.0,0.00020493,2]
[373483334,1753019557764,-579.47,0.00020493,2]
[373483335,1753019557773,-2360.18,0.00020493,2]
[373483336,1753019557783,-957.17,0.00020493,2]
[373483337,1753019557792,-1144.57,0.00020493,2]
[373483338,1753019557800,-709.9,0.00020493,2]
[373483339,1753019557809,-3060.53,0.00020493,2]
[373483340,1753019557819,-1014.42,0.00020493,2]
[373483341,1753019557828,-666.51,0.00020493,2]
[373483342,1753019557837,-1099.37,0.00020493,2]
[373483343,1753019557847,-1194.62,0.00020493,2]
[373483344,1753019557856,-622.5,0.00020493,2]
[373483345,1753019557865,-480.0,0.00020493,2]
[373483346,1753019557874,-4161.68,0.00020493,2]
[373483347,1753019557883,-1224.46,0.00020493,2]
[373483348,1753019557892,-3588.19,0.00020493,2]
[373483349,1753019557901,-1009.8,0.00020493,2]
[373483350,1753019557911,-480.0,0.00020493,2]
[373483351,1753019557920,-759.09,0.00020493,2]
[373483352,1753019557930,-480.0,0.00020493,2]
[373483353,1753019557940,-480.0,0.00020493,2]
[373483354,1753019557950,-892.48,0.00020493,2]
[373483355,1753019557959,-2738.0,0.00020493,2]
[373483356,1753019557969,-2154.18,0.00020493,2]
[373483357,1753019557980,-1765.61,0.00020493,2]
[373483358,1753019557990,-563.37,0.00020493,2]
[373483359,1753019557999,-480.0,0.00020493,2]
[373483360,1753019558009,-1317.6,0.00020493,2]
[373483361,1753019558019,-1417.35,0.00020493,2]
[373483362,1753019558029,-3701.58,0.00020493,2]
[373483363,1753019558039,-1224.02,0.00020493,2]
[373483364,1753019558048,-494.3,0.00020493,2]
[373483365,1753019558057,-2675.44,0.00020493,2]
[373483366,1753019558067,-2516.48,0.00020493,2]
[373483367,1753019558077,-1280.96,0.00020493,2]
[373483368,1753019558086,-1234.43,0.00020493,2]
[373483369,1753019558096,-480.0,0.00020493,2]
[373483370,1753019558105,-480.0,0.00020493,2]
[373483371,1753019558115,-1639.88,0.00020493,2]
[373483372,1753019558124,-2371.21,0.00020493,2]
[373483373,1753019558134,-1781.89,0.00020493,2]
[373483374,1753019558143,-4290.9,0.00020493,2]
[373483375,1753019558152,-673.12,0.00020493,2]
[373483376,1753019558162,-2112.39,0.00020493,2]
[373483377,1753019558171,-480.0,0.00020493,2]
[373483378,1753019558180,-686.73,0.00020493,2]
[373483379,1753019558190,-1034.48,0.00020493,2]
[373483380,1753019558200,-509.06,0.00020493,2]
[373483381,1753019558210,-2302.39,0.00020493,2]
[373483382,1753019558219,-1841.2,0.00020493,2]
[373483383,1753019558232,-578.43,0.00020493,2]
[373483384,1753019558242,-810.97,0.00020493,2]
[373483385,1753019558252,-480.0,0.00020493,2]
[373483386,1753019558261,-510.33,0.00020493,2]
[373483387,1753019558271,-1875.92,0.00020493,2]
[373483388,1753019558281,-1830.19,0.00020493,2]
[373483389,1753019558291,-1656.2,0.00020493,2]
[373483390,1753019558301,-1530.02,0.00020493,2]
[373483391,1753019558310,-4600.51,0.00020493,2]
[373483392,1753019558320,-678.36,0.00020493,2]
[373483393,1753019558330,-1122.81,0.00020493,2]
[373483394,1753019558339,-755.77,0.00020493,2]
[373483395,1753019558350,-1854.23,0.00020493,2]
[373483396,1753019558359,-3405.09,0.00020493,2]
[373483397,1753019558369,-176.02933372,0.00020493,2]
[373483398,1753019558378,-5000.0,0.00020498,2]
[373483399,1753019558388,-7117.0,0.000205,3]
[373483400,1753019558397,-150.0,0.00020548,2]
[373483401,1753019558407,-8809.27390325,0.00020559,2]
[373483402,1753019558417,-2500.0,0.00020562,2]
[373483403,1753019558427,-151.0,0.00020602,2]
[373483404,1753019558436,-151.0,0.00020602,2]
[373483405,1753019558446,-151.0,0.00020602,2]
[373483406,1753019558455,-151.0,0.00020602,2]
[373483407,1753019558467,-151.0,0.00020602,2]
[373483408,1753019558478,-151.0,0.00020602,2]
[373483409,1753019558488,-151.0,0.00020602,2]
[373483410,1753019558498,-151.0,0.00020602,2]
[373483411,1753019558507,-151.0,0.00020602,2]
[373483412,1753019558518,-151.0,0.00020602,2]
[373483413,1753019558528,-151.0,0.00020602,2]
[373483414,1753019558537,-152.422035,0.00020602,2]
[373483415,1753019558548,-152.422035,0.00020602,2]
[373483416,1753019558557,-309.984824,0.00020602,2]
[373483417,1753019558567,-309.984824,0.00020602,2]
[373483418,1753019558577,-151.0,0.00020602,2]
[373483419,1753019558588,-178.669679,0.00020602,2]
[373483420,1753019558597,-178.669679,0.00020602,2]
[373483421,1753019558608,-480.0,0.00020602,2]
[373483422,1753019558618,-480.0,0.00020602,2]
[373483423,1753019558628,-480.0,0.00020602,2]
[373483424,1753019558638,-480.0,0.00020602,2]
[373483425,1753019558648,-480.0,0.00020602,2]
[373483426,1753019558658,-991.02,0.00020602,2]
[373483427,1753019558667,-323.573606,0.00020602,2]
[373483428,1753019558678,-323.573609,0.00020602,2]
[373483429,1753019558688,-480.0,0.00020602,2]
[373483430,1753019558698,-573.77,0.00020602,2]
[373483431,1753019558707,-759.54,0.00020602,2]
[373483432,1753019558717,-1132.31,0.00020602,2]
[373483433,1753019558732,-817.3,0.00020602,2]
[373483434,1753019558742,-5060.37,0.00020602,2]
[373483435,1753019558752,-561.39,0.00020602,2]
[373483436,1753019558762,-1056.44,0.00020602,2]
[373483437,1753019558772,-561.76,0.00020602,2]
[373483438,1753019558782,-1722.64,0.00020602,2]
[373483439,1753019558792,-1184.53,0.00020602,2]
[373483440,1753019558802,-708.25,0.00020602,2]
[373483441,1753019558812,-640.15,0.00020602,2]
[373483442,1753019558822,-654.33,0.00020602,2]
[373483443,1753019558832,-525.6,0.00020602,2]
[373483444,1753019558842,-2315.41,0.00020602,2]
[373483445,1753019558852,-486.88,0.00020602,2]
[373483446,1753019558862,-1036.06,0.00020602,2]
[373483447,1753019558872,-529.02,0.00020602,2]
[373483448,1753019558882,-573.81,0.00020602,2]
[373483449,1753019558892,-802.35,0.00020602,2]
[373483450,1753019558902,-1025.76,0.00020602,2]
[373483451,1753019558912,-480.0,0.00020602,2]
[373483452,1753019558922,-619.12,0.00020602,2]
[373483453,1753019558932,-480.0,0.00020602,2]
[373483454,1753019558943,-480.0,0.00020602,2]
[373483455,1753019558953,-933.84,0.00020602,2]
[373483456,1753019558963,-1365.37,0.00020602,2]
[373483457,1753019558973,-1899.42,0.00020602,2]
[373483458,1753019558983,-480.0,0.00020602,2]